Service Area,Expense Type,Date,Transaction Number,Amount,Supplier
Ventnor Botanic Garden,Electricity,2010-04-14,1900160601,2432.05,Southern Electric
Ventnor Botanic Garden,Water And Sewerage,2010-04-26,5000074597,1614.6,Environment Agency [Re]
Ventnor Botanic Garden,Operational Equipmen,2010-05-07,5000076782,566.25,Cater Wight
Ventnor Botanic Garden,Water And Sewerage,2010-05-07,5000076822,-1614.6,Environment Agency [Re]
Ventnor Botanic Garden,Vehicle Maint Costs,2010-05-13,5000077818,2246.86,Redacted Personal Data
Ventnor Botanic Garden,Electricity,2010-05-17,1900177116,2247.67,Southern Electric
Ventnor Botanic Garden,Water And Sewerage,2010-05-17,5000078470,1641.6,Environment Agency [Re]
Ventnor Botanic Garden,Prop Svs   Bldg Mtce,2010-05-28,5000081058,510.78,Mansell Construction [Sb]
Ventnor Botanic Garden,Electricity,2010-06-09,1900189017,2416.78,Southern Electric
Ventnor Botanic Garden,Catering Purchases,2010-06-12,5000083878,720.0,The Royal Hotel Ltd
Ventnor Botanic Garden,Prop Svs Planned Mtc,2010-06-23,5000086127,1340.4,Thyssenkrupp Elevator Uk Ltd
Ventnor Botanic Garden,Fuel Oil,2010-06-24,5000086533,802.35,Pace Petroleum Ltd
Ventnor Botanic Garden,Catering Purchases,2010-07-06,5000088591,720.0,The Royal Hotel   Garden Cafe
Ventnor Botanic Garden,Catering Purchases,2010-07-06,5000088596,1320.0,The Royal Hotel   Garden Cafe
Ventnor Botanic Garden,Vehicle Maint Costs,2010-07-15,5000090465,657.5,Redacted Personal Data
Ventnor Botanic Garden,Electricity,2010-08-03,1900209433,2194.32,Southern Electric
Ventnor Botanic Garden,General Materials,2010-08-10,5000095311,525.0,Wsm Associates Ltd
Ventnor Botanic Garden,Electricity,2010-08-26,1900221139,2182.33,Southern Electric
Ventnor Botanic Garden,Photocopying Costs,2010-08-26,5000098020,878.95,Ricoh Uk Limited
Ventnor Botanic Garden,Catering Purchases,2010-08-27,5000098215,-720.0,The Royal Hotel Ltd
Ventnor Botanic Garden,Vehicle Maint Costs,2010-09-02,5000099114,1233.94,Redacted Personal Data
Ventnor Botanic Garden,Pay To Pvte Contract,2010-09-04,5000099384,520.0,Helping Hands Group
Ventnor Botanic Garden,General Materials,2010-09-08,5000099970,640.0,Tce Ltd
Ventnor Botanic Garden,Electricity,2010-09-21,1900233007,2182.41,Southern Electric
Ventnor Botanic Garden,Prop Svs Planned Mtc,2010-09-22,5000102656,1340.4,Thyssenkrupp Elevator Uk Ltd
Ventnor Botanic Garden,Operational Equipmen,2010-09-22,5000102706,797.57,Pan Global Plants
Ventnor Botanic Garden,Operational Equipmen,2010-09-29,5000103906,1920.0,Forestry Training Services Ltd
Ventnor Botanic Garden,Operational Equipmen,2010-10-01,5000104387,-1920.0,Forestry Training Services Ltd
Ventnor Botanic Garden,Prop Svs   Bldg Mtce,2010-10-06,5000105065,544.62,R G Combustions[Sb]
Ventnor Botanic Garden,Operational Equipmen,2010-10-13,5000106442,1920.0,Forestry Training Services Ltd
Ventnor Botanic Garden,Prop Svs   Bldg Mtce,2010-10-13,5000106472,638.35,Mansell Construction [Sb]
Ventnor Botanic Garden,Electricity,2010-10-13,1900245000,2140.44,Southern Electric
Ventnor Botanic Garden,Operational Equipmen,2010-10-14,5000106796,520.0,John Davidson (Pipes) Ltd
Ventnor Botanic Garden,Prop Svs   Bldg Mtce,2010-10-28,5000109481,785.36,R G Combustions[Sb]
Ventnor Botanic Garden,"Ref Collect, Disp &",2010-11-03,5000110572,511.34,Biffa Waste Services Ltd
Ventnor Botanic Garden,Gas,2010-11-10,1900254622,1496.04,Kent County Council
Ventnor Botanic Garden,Electricity,2010-11-25,1900265245,2149.1,Southern Electric
Ventnor Botanic Garden,Prop Svs   Bldg Mtce,2010-11-25,5000114288,635.0,Capita Symonds Ltd
Ventnor Botanic Garden,Electricity,2010-12-15,1900272575,1705.61,Southern Electric
Ventnor Botanic Garden,Catering Purchases,2010-12-16,5000117689,1190.0,The Royal Hotel   Garden Cafe
Ventnor Botanic Garden,Catering Purchases,2010-12-16,5000117689,856.5,The Royal Hotel   Garden Cafe
Ventnor Botanic Garden,Operational Equipmen,2010-12-16,5000117697,625.0,W J Nigh & Sons Ltd
Ventnor Botanic Garden,Prop Svs Planned Mtc,2010-12-20,5000118389,730.65,Mansell Construction [Sb]
Ventnor Botanic Garden,Prop Svs Planned Mtc,2011-01-05,5000119852,893.6,Thyssenkrupp Elevator Uk Ltd
Ventnor Botanic Garden,General Materials,2011-01-13,5000121334,650.0,Ne3 D Ltd
Ventnor Botanic Garden,Gas,2011-01-20,1900290189,1706.97,Kent County Council
Ventnor Botanic Garden,Gas,2011-01-20,1900290190,3249.95,Kent County Council
Ventnor Botanic Garden,Gas,2011-01-20,1900290191,7668.09,Kent County Council
Ventnor Botanic Garden,Electricity,2011-01-27,1900290883,1459.61,Southern Electric
Ventnor Botanic Garden,Pay To Pvte Contract,2011-02-01,5000124451,813.99,Chubb Electronic Security Ltd
Ventnor Botanic Garden,Prop Svs Planned Mtc,2011-02-15,5000127115,2149.68,Southern Electric
Ventnor Botanic Garden,Electricity,2011-02-17,1900303483,1202.78,Southern Electric
Ventnor Botanic Garden,Gas,2011-03-02,1900305492,3507.71,Kent County Council
Ventnor Botanic Garden,Gas,2011-03-10,1900311080,2117.81,Kent County Council
Ventnor Botanic Garden,Electricity,2011-03-22,1900317152,1481.86,Southern Electric
Ventnor Botanic Garden,Electricity,2011-03-28,1900318272,998.41,Southern Electric
Ventnor Botanic Garden,Prop Svs   Bldg Mtce,2011-03-29,5000134321,709.0,Mansell Construction [Sb]
Ventnor Botanic Garden,Marketing Costs,2011-03-29,5000134451,4370.0,The Royal Hotel   Garden Cafe
Ventnor Botanic Garden,Gas,2011-03-30,1900324026,1974.84,Kent County Council
Ventnor Botanic Garden,Prop Svs Planned Mtc,2011-04-07,5000136100,628.3,D A R E S Ltd
Ventnor Botanic Garden,Electricity,2011-04-27,1900332192,1974.67,Southern Electric
Ventnor Botanic Garden,Prop Svs   Bldg Mtce,2011-05-17,5000141707,1700.0,White Young Green Engineering Ltd
Ventnor Botanic Garden,Electricity,2011-05-18,1900343705,2167.18,Southern Electric
Ventnor Botanic Garden,Catering Purchases,2011-05-25,5000143027,765.0,The Royal Hotel   Garden Cafe
Ventnor Botanic Garden,Gas,2011-05-25,1900345215,2163.86,Kent County Council
Ventnor Botanic Garden,Gas,2011-05-26,1900349919,727.58,Kent County Council
Ventnor Botanic Garden,Prop Svs   Bldg Mtce,2011-05-26,5000143230,826.0,Mansell Construction [Sb]
Ventnor Botanic Garden,Vehicle Maint Costs,2011-06-06,5000144305,5089.0,Redacted Personal Data
Ventnor Botanic Garden,Prop Svs Planned Mtc,2011-06-07,5000144375,666.0,D A R E S Ltd
Ventnor Botanic Garden,Electricity,2011-06-17,1900357005,2680.64,Southern Electric
Ventnor Botanic Garden,Prop Svs   Bldg Mtce,2011-06-22,5000146849,2730.0,White Young Green Engineering Ltd
Ventnor Botanic Garden,General Materials,2011-07-05,5000148375,540.0,Evergreen Computing Ltd
Ventnor Botanic Garden,Operational Equipmen,2011-07-13,5000149983,1350.0,Evergreen Computing Ltd
Ventnor Botanic Garden,Electricity,2011-07-25,1900375767,2539.13,Southern Electric
Ventnor Botanic Garden,Cleaning Contracts,2011-07-26,5000151806,1250.0,Helping Hands Group
Ventnor Botanic Garden,Professional Service,2011-07-29,5000152323,10000.0,Redacted Personal Data
Ventnor Botanic Garden,Clothing & Laundry,2011-08-16,5000154722,654.15,Weatherwise
Ventnor Botanic Garden,Pay To Pvte Contract,2011-08-23,5000155937,1000.0,Helping Hands Group
Ventnor Botanic Garden,Electricity,2011-08-25,1900388461,2564.84,Southern Electric
Ventnor Botanic Garden,Water And Sewerage,2011-08-26,5000156312,1641.6,Environment Agency [Re]
Ventnor Botanic Garden,Prop Svs   Bldg Mtce,2011-09-16,5000159151,565.13,Mansell Construction Svcs Ltd [Sb]
Ventnor Botanic Garden,Electricity,2011-09-21,1900400541,2687.9,Southern Electric
Ventnor Botanic Garden,General Materials,2011-09-22,5000159924,525.0,Waxcrayon Design
Ventnor Botanic Garden,Pay To Pvte Contract,2011-09-27,5000160425,1250.0,Helping Hands Group
Ventnor Botanic Garden,Prop Svs   Bldg Mtce,2011-09-27,5000160345,688.7,Orona Limited
Ventnor Botanic Garden,Prop Svs   Bldg Mtce,2011-10-07,5000162104,1260.0,White Young Green Engineering Ltd
Ventnor Botanic Garden,Water And Sewerage,2011-10-11,1700044568,-646.12,Southern Water Authority
Ventnor Botanic Garden,Catering Purchases,2011-10-26,5000163929,514.3,The Royal Hotel   Garden Cafe
Ventnor Botanic Garden,Pay To Pvte Contract,2011-11-02,5000164673,1000.0,Helping Hands Group
Ventnor Botanic Garden,Prop Svs   Bldg Mtce,2011-11-03,5000164956,2676.54,R G Combustions[Sb]
Ventnor Botanic Garden,Prop Svs   Bldg Mtce,2011-11-08,5000165583,1599.9,Orona Limited
Ventnor Botanic Garden,Training,2011-11-10,5000166042,700.0,Manser Bed & Breakfast
Ventnor Botanic Garden,Prop Svs   Bldg Mtce,2011-11-14,5000166734,1667.57,Mansell Construction Svcs Ltd [Sb]
Ventnor Botanic Garden,Prop Svs Planned Mtc,2011-11-14,5000166987,1722.63,Orona Limited
Ventnor Botanic Garden,Electricity,2011-11-14,1900425639,624.09,Southern Electric
Ventnor Botanic Garden,Operational Equipmen,2011-11-19,5000167920,1100.0,Evergreen Computing Ltd
Ventnor Botanic Garden,Operational Equipmen,2011-11-23,5000168384,880.0,Evergreen Computing Ltd
Ventnor Botanic Garden,Prop Svs Planned Mtc,2011-12-05,5000169997,3359.99,Orona Limited
Ventnor Botanic Garden,Pay To Pvte Contract,2011-12-07,5000170350,625.0,Helping Hands Group
Ventnor Botanic Garden,Payment To Private Contractors,2012-01-09,5000174742,813.99,Chubb Electronic Security Ltd
Ventnor Botanic Garden,Payment To Private Contractors,2012-01-09,5000174738,813.99,Chubb Electronic Security Ltd
Ventnor Botanic Garden,Payment To Private Contractors,2012-01-09,5000174741,-813.99,Chubb Electronic Security Ltd
Ventnor Botanic Garden,Catering Purchases,2012-01-10,5000175068,665.17,The Royal Hotel   Garden Cafe
Ventnor Botanic Garden,Prop Svs Only   Day To Day Mtce,2012-01-31,5000177727,630.0,Mansell Construction Svcs Ltd [Sb]
Ventnor Botanic Garden,Fuel Oil,2012-02-22,5000181643,707.7,Pace Petroleum Ltd
Ventnor Botanic Garden,Payment To Private Contractors,2012-02-28,5000182481,690.0,Helping Hands Group
Ventnor Botanic Garden,Property Services   Planned Maintenance,2012-03-02,5000183002,635.75,Mansell Construction Svcs Ltd [Sb]
Ventnor Botanic Garden,Prop Svs Only   Day To Day Mtce,2012-03-07,5000183566,695.0,Mansell Construction Svcs Ltd [Sb]
Ventnor Botanic Garden,Payment To Private Contractors,2012-03-28,5000187763,1000.0,Helping Hands Group
Ventnor Botanic Garden,Marketing Costs,2012-03-30,5000188407,2300.0,Ronague Enterprises Ltd
Ventnor Botanic Garden,Marketing Costs,2012-03-30,5000188380,5427.0,Onboard Tv Limited
Ventnor Botanic Garden,Fixed Telephones,2012-03-30,5000188402,2151.6,Bt Business Direct
Ventnor Botanic Garden,Marketing Costs,2012-03-30,5000188410,2412.0,Wightlife Magazine Perfect Titles
